bitfinex/quotes_ETHUSD_20240703
["timestamp","ask_amount","ask_price","bid_price","bid_amount"]
[1720003265516,0.13229616,3313.6,3312.6,2.25634191]
[1720003265718,0.13229616,3313.6,3312.7,3.46256581]
[1720003265961,0.0603678,3313.6,3312.7,1.2665974]
[1720003266682,7.2625,3314.0,3313.0,1.2665974]
[1720003266809,7.2625,3314.0,3312.9,1.2665974]
[1720003266810,0.0603678,3313.9,3312.9,1.2665974]
[1720003267173,0.0603678,3313.9,3313.0,3.4616889]
[1720003267343,0.0721735,3313.8,3313.1,2.1950915]
[1720003267645,0.0721735,3313.8,3313.2,1.2665974]
[1720003267813,0.0721735,3313.8,3313.3,2.1950915]
[1720003268209,0.0721735,3313.8,3313.1,1.2665974]
[1720003268432,0.0721735,3313.8,3313.2,2.19495549]
[1720003268745,0.0721735,3313.8,3313.2,3.46155289]
[1720003268924,0.0721735,3313.8,3313.3,2.19495549]
[1720003269531,0.0721735,3313.8,3313.1,1.2665974]
[1720003269739,0.0721735,3313.8,3313.2,2.19492375]
[1720003270563,0.0603678,3313.7,3312.8,1.2665974]
[1720003270785,0.0603678,3313.7,3312.6,1.58344952]
[1720003270786,0.0603678,3313.7,3312.9,2.1950822]
[1720003271060,0.0603678,3313.7,3313.0,2.1950822]
[1720003271061,0.07234666,3313.6,3313.0,2.1950822]
[1720003271280,0.0603678,3313.5,3312.7,1.2665974]
[1720003271435,0.0603678,3313.5,3312.8,2.19516696]
[1720003271759,0.07238913,3313.4,3312.8,2.19516696]
[1720003271990,0.0603678,3313.3,3312.8,2.19516696]
[1720003272477,0.0603678,3313.9,3312.9,2.19516696]
[1720003272657,0.73228678,3313.8,3312.6,1.2665974]
[1720003272837,0.13275693,3313.7,3312.7,2.19519439]
[1720003273035,0.0603678,3313.7,3312.7,2.19519439]
[1720003273246,0.0603678,3313.7,3312.7,3.46179179]
[1720003273447,0.0603678,3313.7,3312.4,0.3022236]
[1720003273448,0.0603678,3313.7,3312.8,2.19519439]
[1720003273648,0.0603678,3313.7,3312.9,2.2555577]
[1720003273938,0.07238913,3313.6,3313.0,2.19519439]
[1720003274245,0.13275693,3313.6,3313.1,2.19519439]
[1720003274455,0.0603678,3313.9,3312.9,1.26655534]
[1720003274788,0.07231726,3313.8,3313.0,2.19504455]
[1720003274930,0.0603678,3313.7,3313.0,2.19504455]
[1720003276071,0.0603678,3313.7,3313.1,2.19508331]
[1720003276377,0.0603678,3313.7,3313.2,2.19504455]
[1720003276557,0.0603678,3313.9,3313.2,2.19504455]
[1720003277140,0.0603678,3313.9,3313.1,2.19508331]
[1720003277339,0.0603678,3313.9,3313.2,2.19503774]
[1720003277536,0.0603678,3313.9,3312.8,1.26655534]
[1720003277768,0.79265458,3313.9,3312.9,2.19503085]
[1720003278271,1.0723532,3313.8,3312.8,1.26655534]
[1720003278457,0.0603678,3313.7,3312.8,1.26655534]
[1720003278638,0.07235973,3313.6,3312.8,1.26655534]
[1720003278835,0.0603678,3313.5,3312.8,1.26655534]
[1720003279179,0.0603678,3313.6,3312.9,2.19525627]
[1720003279349,0.07235973,3313.4,3312.9,2.25562128]
[1720003279557,0.0722552,3313.5,3313.0,2.19525627]
[1720003279878,0.0722552,3313.4,3312.7,2.681]
[1720003280076,0.0603678,3313.9,3312.8,2.19513255]
[1720003280266,0.0722552,3313.8,3312.8,2.19513255]
[1720003280435,0.0603678,3313.7,3312.8,2.19513255]
[1720003280864,0.07227806,3313.6,3312.8,2.19513255]
[1720003281047,0.0603678,3313.9,3312.8,2.19513255]
[1720003281244,0.07227806,3313.8,3312.8,2.19513255]
[1720003281572,0.07227806,3313.8,3313.1,2.681]
[1720003281768,0.07227806,3313.8,3313.2,2.25548861]
[1720003281970,7.2625,3314.0,3313.3,2.25548868]
[1720003282266,0.0603678,3313.9,3313.4,2.19513255]
[1720003282957,7.24278063,3314.0,3313.4,2.19513255]
[1720003283257,0.0724022,3313.9,3313.5,4.93615621]
[1720003283568,1.0,3315.1,3313.6,2.19480008]
[1720003283942,1.0,3314.8,3313.6,2.19480008]
[1720003284164,1.0,3315.0,3313.1,3.94728844]
[1720003284359,1.0,3315.0,3313.2,2.19479325]
[1720003284670,1.0,3315.2,3313.2,2.19479325]
[1720003285955,7.4346,3314.5,3313.2,2.19479325]
[1720003286379,0.07251326,3314.1,3313.2,2.19479325]
[1720003287459,0.07251326,3314.1,3313.3,2.19467702]
[1720003287674,0.07251326,3314.1,3313.3,3.46004048]
[1720003287881,0.07251326,3314.1,3313.4,2.19467702]
[1720003288606,0.07251326,3314.1,3313.5,2.681]
[1720003288753,0.07251326,3314.1,3313.6,2.19467702]
[1720003288951,0.07251326,3314.1,3313.7,0.06034895]
[1720003289194,0.07251326,3314.1,3313.9,2.681]
[1720003289373,7.1171,3315.0,3314.0,2.19446583]
[1720003289575,7.1171,3315.0,3314.1,0.06033785]
[1720003289776,0.07013206,3314.9,3314.1,0.06033785]
[1720003290090,7.1171,3315.0,3314.1,0.06033785]
[1720003290291,7.1171,3315.0,3314.0,0.06033786]
[1720003290480,7.1171,3315.0,3313.9,2.681]
[1720003290857,7.82881,3315.0,3313.5,2.681]
[1720003291177,0.07023329,3314.9,3313.6,2.19444339]
[1720003291699,7.82881,3315.0,3313.6,2.19444339]
[1720003292163,8.82881,3315.0,3313.4,0.06034576]
[1720003292357,0.882881,3314.9,3313.3,7.47]
[1720003292690,0.95315349,3314.9,3313.4,2.25501551]
[1720003292908,0.95315349,3314.9,3313.4,0.06035232]
[1720003293394,0.95315349,3314.9,3313.5,2.19467587]
[1720003293567,0.95315349,3314.9,3313.1,1.58020411]
[1720003293568,1.0,3314.8,3313.2,2.681]
[1720003293888,0.19531535,3314.7,3313.3,2.19470331]
[1720003294090,1.0705861,3314.6,3313.5,0.30174]
[1720003294854,0.0705861,3314.6,3313.5,0.30174]
[1720003295480,1.0705861,3314.6,3313.5,0.30174]
[1720003295685,0.0705861,3314.6,3313.5,0.30174]
[1720003295990,0.0705861,3314.6,3313.6,2.74135597]
[1720003296558,0.0705861,3314.6,3313.7,0.30178]
[1720003297056,7.2468,3314.8,3313.7,0.30178]
[1720003297057,7.2468,3314.8,3313.8,0.06034885]
[1720003297393,0.07051753,3314.7,3313.9,0.30176]
[1720003297890,7.2468,3314.8,3313.9,0.30176]
[1720003298068,7.2468,3314.8,3314.0,2.19437696]
[1720003298399,7.2468,3314.8,3313.9,0.30176]
[1720003298561,7.2468,3314.8,3314.1,0.30174]
[1720003299760,6.8483,3315.6,3314.1,0.30174]
[1720003299965,7.53313,3315.6,3314.2,2.19403379]
[1720003300289,0.0706579,3315.5,3314.2,0.06033792]
[1720003300493,0.0706579,3315.5,3314.1,0.30174]
[1720003300691,0.76037879,3315.4,3314.1,0.30174]
[1720003301191,0.0706579,3315.3,3314.1,0.30174]
[1720003303384,0.0706579,3315.3,3314.2,0.06033848]
[1720003304565,6.8483,3315.6,3314.2,0.06033848]
[1720003304766,6.8483,3315.6,3314.3,4.87491307]
[1720003304990,0.07074603,3315.5,3314.4,2.19391307]
[1720003305307,6.8483,3315.6,3314.4,2.19391307]
[1720003305474,0.0707493,3315.4,3314.3,2.681]
[1720003305687,0.0707493,3315.4,3314.5,0.30172]
[1720003306001,6.8483,3315.6,3314.5,0.30172]
[1720003308772,0.07130748,3315.5,3314.5,0.30172]
[1720003309318,6.8483,3315.6,3314.7,2.681]
[1720003309480,6.8483,3315.6,3314.8,0.06032721]
[1720003309675,6.45879381,3315.6,3314.8,0.06032721]
[1720003309877,0.07130748,3315.5,3314.8,0.06032721]
[1720003310303,0.07130748,3315.5,3314.5,0.30172]
[1720003310304,3.40531761,3315.5,3314.5,0.30172]
[1720003310475,2.75230748,3315.5,3314.5,0.30172]
[1720003311193,0.07130748,3315.5,3314.5,0.30172]
[1720003311909,2.681,3315.9,3314.5,0.30172]
[1720003312083,0.07109212,3315.4,3314.5,0.30172]
[1720003312416,1.0,3315.6,3314.5,0.30172]
[1720003312590,0.07109212,3315.3,3314.5,0.30172]
[1720003312791,7.3292,3315.5,3314.5,0.30172]
[1720003312990,0.07109212,3315.2,3314.5,0.30172]
[1720003313197,8.16212,3315.5,3314.5,0.30172]
[1720003313407,0.07109212,3315.1,3314.5,0.30172]
[1720003313611,7.3292,3315.5,3314.5,0.30172]
[1720003313813,0.07109212,3315.0,3314.5,0.30172]
[1720003313979,7.3292,3315.5,3314.5,0.30172]
[1720003314474,0.07110188,3315.4,3314.5,0.30172]
[1720003315281,0.07110188,3315.4,3314.5,2.98272]
[1720003315482,7.3292,3315.5,3314.5,0.30172]
[1720003315796,0.07112475,3315.4,3314.5,0.30172]
[1720003316419,1.0,3315.3,3314.5,0.30172]
[1720003316601,0.07112475,3315.4,3314.5,0.30172]
[1720003316798,8.06212,3315.5,3314.5,0.30172]
[1720003317111,7.3292,3315.5,3314.6,0.06033869]
[1720003317301,0.07109212,3315.4,3314.5,0.30172]
[1720003319201,7.1445,3316.0,3314.5,0.30172]
[1720003319408,0.07121612,3315.3,3314.5,0.30172]
[1720003319722,0.07121612,3315.2,3314.5,0.30172]
[1720003320091,7.1445,3316.0,3314.5,0.30172]
[1720003320308,0.07121612,3315.9,3314.5,0.30172]
[1720003320506,1.07121612,3315.9,3314.5,0.30172]
[1720003321119,1.07121612,3315.9,3314.5,0.68175857]
[1720003321498,1.0,3315.6,3314.5,0.30172]
[1720003321706,0.07121612,3315.9,3314.5,0.30172]
[1720003321707,1.0,3315.4,3314.5,0.30172]
[1720003321914,0.07114432,3315.3,3314.5,0.30172]
[1720003322225,7.3489,3315.2,3314.5,0.30172]
[1720003322525,1.0,3315.1,3314.5,0.30172]
[1720003322741,1.07114432,3315.1,3314.5,0.30172]
[1720003322952,0.84200443,3315.0,3314.5,0.30172]
[1720003323244,1.84200443,3315.0,3314.5,0.30172]
[1720003323412,1.0,3314.7,3314.5,0.30172]
[1720003324149,0.07104642,3314.6,3314.5,0.30172]
[1720003324313,8.28364642,3314.6,3314.5,0.30172]
[1720003324507,7.28364642,3314.6,3314.5,0.30172]
[1720003328468,7.28364642,3314.6,3313.1,17.45144316]
[1720003328469,7.28364642,3314.6,3313.1,7.47]
[1720003328616,2.681,3314.2,3312.8,0.37101522]
[1720003328812,2.681,3314.2,3312.2,1.26429483]
[1720003329016,0.07067415,3314.1,3312.4,1.26429483]
[1720003329254,0.07067415,3314.1,3312.3,2.19526839]
[1720003329255,0.07067415,3314.1,3312.5,2.25563266]
[1720003329433,0.07067415,3314.1,3312.6,2.19526839]
[1720003329616,2.681,3314.3,3312.4,1.26429483]
[1720003329617,2.681,3314.3,3312.7,2.19526839]
[1720003329818,6.7713,3313.7,3312.3,1.26429483]
[1720003330154,0.07061208,3313.6,3312.0,14.62699348]
[1720003330450,1.0,3313.5,3312.1,2.19543392]
[1720003330630,0.07061208,3313.6,3312.1,2.19543392]
[1720003330833,0.07061535,3313.4,3312.1,2.19543392]
[1720003331038,7.7713,3313.7,3312.1,2.19543392]
[1720003331369,0.77713,3313.6,3312.0,14.62699348]
[1720003331527,1.0,3313.5,3312.0,14.62699348]
[1720003331853,0.84757545,3313.6,3312.0,7.47]
[1720003332173,6.7713,3313.7,3312.1,2.74138066]
[1720003332318,0.0697139,3313.5,3312.1,2.74138066]
[1720003332519,6.7713,3313.7,3312.1,2.74138066]
[1720003333529,6.7713,3313.7,3312.0,7.47]
[1720003334469,2.681,3313.4,3312.0,7.47]
[1720003334637,0.2681,3313.4,3312.0,7.47]
[1720003334836,6.7713,3313.7,3312.0,7.47]
[1720003334837,0.06974005,3313.3,3312.0,7.47]
[1720003335054,6.7713,3313.7,3312.1,0.06037854]
[1720003335353,6.7713,3313.7,3312.0,2.681]
[1720003335516,6.7713,3313.7,3312.1,0.06037141]
[1720003335937,6.7713,3313.7,3312.0,2.681]
[1720003337334,6.7713,3313.7,3311.8,0.37435939]
[1720003337529,6.7713,3313.7,3312.0,2.681]
[1720003338441,7.54843,3313.7,3311.7,7.2501]
[1720003338647,1.0,3313.5,3311.7,7.62491218]
[1720003338865,1.0,3313.3,3311.7,7.62491218]
[1720003339360,1.0,3313.3,3311.7,0.37481218]
[1720003339655,1.3681,3313.3,3311.5,7.47]
[1720003340158,1.0,3313.1,3311.5,7.47]
[1720003340456,1.0,3312.9,3311.2,10.1345]
[1720003340633,7.1451,3313.0,3311.2,10.51455218]
[1720003340832,7.1451,3313.0,3311.3,0.06038335]
[1720003340833,0.06963223,3312.8,3311.3,0.06038335]
[1720003341142,0.06960281,3312.7,3312.0,2.681]
[1720003341328,0.06960281,3312.7,3312.1,0.06037456]
[1720003341523,7.1451,3313.5,3312.1,0.06037456]
[1720003341854,7.1451,3313.5,3312.2,7.3597]
[1720003341855,0.06960935,3313.4,3312.2,7.3597]
[1720003342041,0.06960935,3313.4,3312.3,0.06037132]
[1720003342759,0.06960935,3313.4,3312.2,7.3597]
[1720003342932,7.1133,3313.9,3312.4,2.681]
[1720003343138,0.06976947,3313.3,3312.4,2.681]
[1720003343334,8.1133,3313.9,3312.2,7.3597]
[1720003343535,0.06977273,3313.2,3312.2,7.3597]
[1720003343734,0.06977273,3313.2,3312.0,2.681]
[1720003343735,1.0,3313.7,3312.0,2.681]
[1720003343946,7.0357,3313.4,3311.6,7.47]
[1720003344459,7.0357,3313.4,3311.7,0.06037735]
[1720003344634,0.06984463,3313.3,3311.9,2.681]
[1720003345171,0.06984463,3313.3,3312.0,0.06037317]
[1720003345473,0.06984463,3313.3,3312.3,2.681]
[1720003345681,7.2322,3313.9,3312.4,0.06036507]
[1720003345842,0.06748707,3313.2,3312.4,0.06036507]
[1720003346039,7.2322,3313.9,3312.4,0.06036507]
[1720003346443,0.06748707,3313.8,3312.4,0.06036507]
[1720003346864,0.06748707,3313.8,3312.3,2.681]
[1720003349167,0.06748707,3313.8,3312.4,0.06036132]
[1720003349478,0.06748707,3313.8,3312.7,2.681]
[1720003349678,0.06748707,3313.8,3312.8,0.06035928]
[1720003349891,7.3599,3314.4,3312.9,7.0947]
[1720003350187,7.3599,3314.4,3313.0,0.060356]
[1720003350361,0.06762754,3314.3,3313.0,0.060356]
[1720003352685,0.06762754,3314.3,3313.1,2.681]
[1720003352852,0.06762754,3314.3,3313.2,0.060351]
[1720003353053,7.3599,3314.4,3313.3,0.060351]
[1720003353347,0.06740854,3314.3,3313.1,2.681]
[1720003353784,7.3599,3314.4,3313.1,2.681]
[1720003354553,8.09589,3314.4,3312.9,0.37016012]
[1720003354882,8.09589,3314.4,3312.6,10.151]
[1720003355088,0.06740854,3314.3,3312.6,10.151]
[1720003355279,1.06740854,3314.3,3312.6,10.151]
[1720003355580,1.0,3314.3,3312.6,7.832577]
[1720003355759,0.909589,3314.3,3312.6,7.832577]
[1720003355961,7.3599,3314.4,3312.8,2.681]
[1720003355962,0.067402,3314.2,3312.8,2.681]
[1720003356166,0.067402,3314.2,3312.9,0.06035568]
[1720003356361,0.067402,3314.2,3312.7,1.25906968]
[1720003356562,0.067402,3314.2,3312.9,2.681]
[1720003356955,7.3599,3314.4,3312.9,2.681]
[1720003357352,7.3599,3314.4,3313.0,0.06035132]
[1720003358785,7.3599,3314.4,3313.0,2.74135132]
[1720003359387,7.3599,3314.4,3313.1,2.19454972]
[1720003359587,7.3599,3314.4,3313.2,0.06034893]
[1720003359795,7.3599,3314.4,3313.3,0.06034893]
[1720003360273,0.0678397,3314.3,3313.3,0.06034893]
[1720003360476,7.3599,3314.4,3313.3,0.06034893]
[1720003360876,0.06787888,3314.3,3313.3,0.06034893]
[1720003361401,0.06787888,3314.3,3313.0,2.681]
[1720003361764,7.3599,3314.4,3313.1,0.0603514]
[1720003362669,7.3599,3314.4,3313.2,2.19458483]
[1720003362870,7.3599,3314.4,3313.3,0.06034898]
[1720003363193,0.06560583,3314.3,3313.3,0.06034898]
[1720003363493,0.06560583,3314.3,3313.0,4.31865675]
[1720003363494,0.06560583,3314.3,3313.0,3.05654439]
[1720003364023,7.3599,3314.4,3313.0,0.37554439]
[1720003364227,0.73599,3314.3,3313.0,0.37554439]
[1720003364514,0.73599,3314.3,3312.7,1.26211236]
[1720003364665,0.06561236,3314.2,3312.8,2.19482837]
[1720003364863,0.06561236,3314.2,3312.8,3.45694073]
[1720003365065,0.06561236,3314.2,3312.9,2.19482837]
[1720003365572,0.06561236,3314.2,3312.9,3.45694073]
[1720003365893,0.06561236,3314.2,3313.0,2.19482837]
[1720003366085,0.06561236,3314.2,3313.1,2.19482837]
[1720003366267,7.1298,3314.1,3312.8,1.26211236]
[1720003366463,7.1298,3314.1,3312.9,2.19483908]
[1720003366666,0.06555033,3314.0,3312.9,2.19483908]
[1720003367668,0.06555033,3314.0,3312.9,3.45695144]
[1720003367898,0.06555033,3314.0,3313.0,2.19483908]
[1720003368095,7.1298,3314.1,3313.1,2.19483908]
[1720003368300,7.1298,3314.1,3313.2,2.19483908]
[1720003368495,7.1298,3314.1,3312.9,1.26211236]
[1720003368695,7.1298,3314.1,3313.0,2.19478809]
[1720003368862,7.1298,3314.1,3313.1,2.19478809]
[1720003369068,7.1298,3314.1,3312.8,1.26211236]
[1720003369378,7.1298,3314.1,3312.9,2.1948616]
[1720003369379,7.94278,3314.1,3312.9,2.1948616]
[1720003369589,8.94278,3314.1,3312.9,2.1948616]
[1720003369789,0.06550133,3314.0,3313.0,2.1948616]
[1720003370100,0.06550133,3314.0,3312.7,2.681]
[1720003370395,0.06550133,3314.0,3312.8,2.19494794]
[1720003370696,1.96632946,3314.0,3312.8,2.19494794]
[1720003370898,1.96632946,3314.0,3312.6,9.11238632]
[1720003370899,7.3325,3313.9,3312.6,7.85027396]
[1720003371096,8.3325,3313.8,3312.6,7.85027396]
[1720003371278,0.83325,3313.7,3312.6,7.85027396]
[1720003371477,8.4425,3313.6,3312.6,7.85027396]
[1720003371699,8.50771389,3313.6,3312.6,7.85027396]
[1720003372312,7.50771389,3313.6,3312.6,7.47]
[1720003374311,7.50771389,3313.6,3312.7,0.06036818]
[1720003374510,7.50771389,3313.6,3312.6,7.47]
[1720003374812,7.50771389,3313.6,3312.7,2.19512777]
[1720003375189,7.4425,3313.6,3312.4,4.32066815]
[1720003375395,7.4425,3313.6,3312.5,2.19507962]
[1720003375710,0.06495908,3313.5,3312.5,2.19507962]
[1720003375882,7.4425,3313.6,3312.5,2.19507962]
[1720003378089,8.28675,3313.6,3312.5,2.19507962]
[1720003378297,8.28675,3313.6,3312.4,0.37481164]
[1720003378526,0.06500808,3313.5,3312.0,7.47]
[1720003378684,0.06500808,3313.5,3312.1,2.19549882]
[1720003378890,8.28675,3313.6,3312.2,2.19549882]
[1720003379111,0.828675,3313.5,3311.9,0.3809965]
[1720003379288,7.1623,3313.4,3312.0,2.1955258]
[1720003379494,7.1623,3313.4,3312.1,2.1955258]
[1720003379699,7.1623,3313.4,3312.2,2.1955258]
[1720003380022,0.06496235,3313.3,3311.8,1.64317622]
[1720003380316,0.06496235,3313.3,3311.9,2.19552159]
[1720003380898,0.97055609,3313.3,3311.9,2.19552159]
[1720003381700,7.4686,3313.2,3311.9,2.19552159]
[1720003382115,0.06486758,3313.1,3311.8,0.37831971]
[1720003382317,0.06486758,3313.1,3311.9,2.25607362]
[1720003382526,0.06486758,3313.1,3312.0,2.19568754]
[1720003382685,7.15919234,3313.2,3312.2,2.681]
[1720003382884,6.94116709,3313.2,3312.3,2.25605463]
[1720003383094,0.06045778,3313.1,3312.6,2.681]
[1720003383427,0.06045778,3313.1,3312.4,2.19568754]
[1720003383428,6.94116709,3313.2,3312.2,2.681]
[1720003383595,6.94116709,3313.2,3312.3,2.19531001]
[1720003384125,6.94116709,3313.2,3312.1,1.26481717]
[1720003384126,6.94116709,3313.2,3312.4,2.19531001]
[1720003384418,6.94116709,3313.2,3312.5,2.19532858]
[1720003384627,1.45199685,3314.6,3312.6,0.06037058]
[1720003384826,1.0,3314.6,3312.7,0.06036184]
[1720003385121,1.0,3314.6,3312.3,1.58102147]
[1720003385122,1.0,3314.0,3312.3,1.26481717]
[1720003385322,1.0,3314.0,3312.4,3.46001074]
[1720003385625,2.681,3314.8,3312.7,2.681]
[1720003385928,0.2681,3314.7,3312.8,2.19519357]
[1720003386231,1.05861492,3314.6,3312.8,2.19519357]
[1720003387220,0.2681,3314.7,3312.8,2.19519357]
[1720003387221,1.45178722,3315.0,3312.8,2.19519357]
[1720003387520,1.45178722,3315.6,3313.6,2.681]
[1720003387746,7.3654,3315.5,3314.0,2.681]
[1720003387890,7.42226883,3315.5,3314.0,2.681]
[1720003388088,7.42226883,3315.5,3314.1,2.19430292]
[1720003388392,7.42226883,3315.5,3314.1,0.06034464]
[1720003388728,7.42226883,3315.5,3314.2,2.19420476]
[1720003388921,7.42226883,3315.5,3314.3,0.06033965]
[1720003389133,8.16449571,3315.5,3313.9,1.2644138]
[1720003389426,8.16449571,3315.5,3313.8,7.47]
[1720003389587,6.8691,3315.1,3313.8,7.47]
[1720003390022,6.8691,3315.1,3313.6,0.37504589]
[1720003390222,1.05719006,3315.0,3313.4,7.47]
[1720003390428,7.1333,3314.5,3313.4,7.47]
[1720003390596,0.81333,3314.4,3313.4,7.16828]
[1720003390793,1.87052006,3314.4,3312.9,1.2644138]
[1720003391099,0.81333,3314.4,3313.0,2.25530152]
[1720003391299,7.1333,3314.5,3313.2,2.681]
[1720003391504,7.1333,3314.5,3313.3,2.25529257]
[1720003391734,6.9662,3315.4,3313.6,2.681]
[1720003391923,6.9662,3315.4,3313.7,2.25528564]
[1720003392097,6.9662,3315.4,3313.8,2.25528268]
[1720003392098,0.0569508,3315.3,3313.8,2.25528268]
[1720003392422,6.9662,3315.4,3313.8,2.25528268]
[1720003392423,6.9662,3315.4,3313.9,2.19439949]
[1720003392628,0.0569508,3315.2,3314.0,0.06034235]
[1720003392789,0.70231508,3315.2,3314.0,0.06034235]
[1720003392993,0.0569508,3315.1,3313.7,0.06034233]
[1720003393194,0.0569508,3315.1,3313.6,3.94534769]
[1720003393195,0.70231508,3315.2,3313.8,2.25473112]
[1720003393395,0.70231508,3315.2,3313.9,2.19438879]
[1720003393591,0.70231508,3315.2,3314.0,0.06034229]
[1720003393795,0.70231508,3315.2,3314.1,2.19438879]
[1720003393992,0.70231508,3315.2,3314.0,0.06034229]
[1720003394313,0.09367927,3317.2,3314.4,2.92268228]
[1720003394509,6.8098,3317.8,3316.6,2.681]
[1720003394719,6.8098,3317.8,3316.7,1.60432991]
[1720003395040,1.0,3317.3,3315.9,1.26260845]
[1720003395240,7.1463,3317.2,3315.5,3.94360845]
[1720003395397,7.1463,3317.2,3315.3,1.26260845]
[1720003395711,7.1463,3317.2,3315.3,0.38017741]
[1720003396024,0.05214065,3317.1,3314.8,4.83260845]
[1720003396235,0.81984407,3317.0,3314.8,3.57]
[1720003396464,7.1149,3316.7,3314.8,3.94423075]
[1720003396800,1.05214065,3316.6,3314.8,3.94423075]
[1720003397326,1.0,3316.4,3314.8,3.94423075]
[1720003397725,0.05213085,3316.3,3314.8,3.94423075]
[1720003398710,7.1149,3316.7,3314.8,3.94423075]
[1720003399040,0.86348662,3316.6,3314.8,3.94423075]
[1720003399411,0.05199662,3316.6,3315.3,3.57]
[1720003399622,7.1149,3316.7,3315.3,3.57]
[1720003399809,7.1149,3316.7,3314.8,3.94423075]
[1720003400006,1.0,3316.5,3314.8,3.94423075]
[1720003400610,1.0,3316.2,3314.8,3.94423075]
[1720003400912,0.05204572,3316.4,3314.8,3.94423075]
[1720003401118,0.71149,3316.6,3314.8,3.94423075]
[1720003401312,0.05204572,3316.3,3314.8,3.94423075]
[1720003401632,0.05204572,3316.2,3314.8,3.94423075]
[1720003402403,0.05204572,3316.2,3314.9,0.06033056]
[1720003402605,0.71149,3316.6,3314.9,0.06033056]
[1720003402819,0.83468472,3316.5,3314.9,0.06033056]
[1720003403498,0.782639,3316.5,3314.9,0.06033056]
[1720003403922,0.782639,3316.5,3314.9,6.9943]
[1720003405331,7.1149,3316.7,3315.3,3.57]
[1720003406038,7.1149,3316.7,3315.4,0.06031874]
[1720003406342,6.8039,3317.4,3315.3,3.57]
[1720003406561,7.8039,3317.4,3315.3,3.57]
[1720003406738,1.0,3317.1,3315.3,3.57]
[1720003407119,0.05044329,3317.0,3315.3,3.57]
[1720003408335,1.0,3316.8,3315.3,3.57]
[1720003408722,0.0513213,3316.7,3315.3,3.57]
[1720003409108,1.0,3317.1,3315.3,3.57]
[1720003409412,6.8311213,3317.0,3315.0,3.57]
[1720003409616,0.78311213,3316.9,3315.0,3.57]
[1720003409819,0.05128202,3316.8,3315.0,3.57]
[1720003410528,1.05128202,3316.8,3315.0,3.57]
[1720003410705,0.05128202,3316.8,3315.0,3.57]
[1720003411337,0.05128202,3316.8,3315.1,0.06031837]
[1720003411536,0.05128202,3316.8,3315.0,3.57]
[1720003411738,0.18343942,3316.7,3315.0,3.57]
[1720003412239,0.05122964,3316.6,3315.0,3.57]
[1720003412806,6.9173,3316.5,3315.0,3.57]
[1720003413011,0.05121982,3316.4,3315.0,3.57]
[1720003413316,0.05121982,3316.4,3314.9,14.16258]
[1720003413317,0.05121982,3316.4,3315.5,3.57]
[1720003413521,0.7480718,3316.4,3314.9,14.16258]
[1720003413721,0.7480718,3316.4,3314.9,7.16828]
[1720003414718,1.0,3316.1,3314.9,7.16828]
[1720003415041,0.05120999,3316.0,3314.9,7.16828]
[1720003415247,0.05120999,3316.0,3314.8,0.37423075]
[1720003415544,1.0,3316.2,3314.6,0.06033097]
[1720003415711,0.05110522,3315.9,3314.5,3.57]
[1720003415911,1.0,3316.0,3314.5,3.57]
[1720003416225,1.0,3316.0,3314.6,0.06033095]
[1720003416649,1.0,3316.0,3314.5,3.92672039]
[1720003417017,6.8143,3315.9,3314.5,0.35672039]
[1720003417219,0.83250902,3315.8,3314.4,7.16828]
[1720003418317,0.83250902,3315.8,3314.0,6.9133]
[1720003418742,0.83250902,3315.8,3314.1,0.06033432]
[1720003419324,0.78143,3315.8,3314.1,0.06033432]
[1720003421025,0.05103645,3315.7,3314.1,0.06033432]
[1720003421447,1.0,3315.2,3314.0,0.36605225]
[1720003421645,1.0,3315.2,3313.2,8.42309891]
[1720003421646,3.57,3314.4,3313.2,7.16828]
[1720003421944,3.57,3314.4,3312.4,7.2532]
[1720003421945,1.0,3314.2,3312.9,0.3644845]
[1720003422114,4.62019,3314.4,3313.0,0.06036212]
[1720003422315,1.05019,3314.4,3313.0,0.06036212]
[1720003422545,0.05089232,3314.3,3313.0,0.06036212]
[1720003423159,0.05089232,3314.3,3312.8,0.06035808]
[1720003424520,6.9319,3314.5,3312.7,8.42464479]
[1720003424719,7.62509,3314.5,3312.7,7.16828]
[1720003425116,0.05087922,3314.4,3312.7,7.16828]
[1720003425549,1.05087922,3314.4,3312.7,7.16828]
[1720003425943,1.0,3314.2,3312.7,7.16828]
[1720003426333,1.0,3314.0,3312.7,7.16828]
[1720003426950,0.05050235,3313.9,3312.7,7.16828]
[1720003427153,0.05050235,3313.9,3312.4,7.61994498]
[1720003427547,1.0,3314.0,3312.4,7.61994498]
[1720003427744,1.0,3314.2,3312.4,7.61994498]
[1720003427946,1.119509,3314.4,3312.4,8.87744786]
[1720003428149,0.05050235,3314.1,3312.4,8.96288951]
[1720003428346,1.119509,3314.4,3312.5,1.25750288]
[1720003428536,0.05047942,3314.0,3312.5,1.25750288]
[1720003428754,0.05047942,3314.0,3312.4,9.27726523]
[1720003428755,1.119509,3314.4,3312.6,1.25750288]
[1720003429080,0.9051409,3314.3,3312.6,1.25750288]
[1720003429225,0.05047942,3314.3,3312.6,1.25750288]
[1720003429430,0.05047942,3314.3,3312.7,1.25750288]
[1720003429666,6.70577999,3315.4,3313.9,3.57]
[1720003429875,0.04384615,3314.2,3314.0,0.06033262]
[1720003430158,4.91051894,3315.4,3313.9,1.25750288]
[1720003430458,0.043132,3315.3,3314.1,1.25750288]
[1720003430760,0.043132,3315.3,3313.8,7.0242]
[1720003430761,0.53418389,3315.3,3313.8,7.0242]
[1720003430963,0.49105189,3315.3,3313.8,7.0242]
[1720003431162,0.04342039,3315.2,3313.8,7.0242]
[1720003431525,0.04342039,3315.2,3313.9,0.0603337]
[1720003431729,0.04342039,3315.2,3313.8,7.0242]
[1720003431957,0.04342039,3315.2,3313.9,0.06033935]
[1720003432267,0.04342039,3315.2,3313.9,1.31784223]
[1720003432845,0.04342039,3315.2,3314.0,1.25750288]
[1720003433040,4.91051894,3315.4,3314.1,0.06033296]
[1720003433244,4.91051894,3315.4,3313.9,1.25750288]
[1720003434128,4.91051894,3315.4,3313.9,1.2591854]
[1720003434777,5.40157083,3315.4,3313.9,1.2591854]
[1720003434944,6.40157083,3315.4,3313.8,0.35857721]
[1720003435271,6.40157083,3315.4,3313.5,1.2591854]
[1720003435272,1.0,3315.2,3313.5,1.2591854]